bitfinex/quotes_ETHUSD_20251110
["timestamp","ask_amount","ask_price","bid_price","bid_amount"]
[1762770870382,0.0002,3611.6,3611.5,16.67802524]
[1762770870654,0.0002,3611.6,3611.5,16.78882718]
[1762770870856,0.0002,3611.6,3611.5,16.49540085]
[1762770872065,0.0002,3611.6,3611.5,9.56037651]
[1762770872360,0.0002,3611.6,3611.5,12.82508868]
[1762770872666,0.0002,3611.6,3611.5,16.49540085]
[1762770873035,0.001,3612.0,3611.9,4.43384193]
[1762770873242,0.001,3612.0,3611.9,8.1041541]
[1762770874765,0.001,3612.0,3611.9,7.6985541]
[1762770876165,0.4913,3612.0,3611.9,4.41684193]
[1762770876365,0.4913,3612.0,3611.9,7.6815541]
[1762770876688,0.001,3612.0,3611.9,8.45313918]
[1762770876861,0.4913,3612.0,3611.9,8.45313918]
[1762770877382,0.9679,3612.0,3611.9,7.6985541]
[1762770878175,0.9679,3612.0,3611.9,4.43384193]
[1762770878977,0.9679,3612.0,3611.9,8.26204193]
[1762770879473,0.4913,3612.0,3611.9,8.26204193]
[1762770879964,0.9679,3612.0,3611.9,8.26204193]
[1762770881129,0.9679,3612.0,3611.9,8.26404193]
[1762770882476,0.9679,3612.0,3611.9,3.8302]
[1762770883171,0.9679,3612.0,3611.9,6.59882593]
[1762770885085,0.4913,3612.0,3611.9,6.59882593]
[1762770885378,0.001,3612.0,3611.9,7.40992993]
[1762770885567,0.001,3612.0,3611.9,8.75387227]
[1762770886146,0.001,3612.0,3611.9,8.34827227]
[1762770886354,0.9679,3612.0,3611.9,7.00432993]
[1762770887085,0.9679,3612.0,3611.9,4.235704]
[1762770887283,0.9679,3612.0,3611.9,7.00432993]
[1762770887696,0.4913,3612.0,3611.9,7.00432993]
[1762770888293,0.0002,3612.0,3611.9,7.00432993]
[1762770888895,0.4905,3612.0,3611.9,7.00432993]
[1762770889107,0.9671,3612.0,3611.9,4.235704]
[1762770889310,0.9671,3612.0,3611.9,7.00432993]
[1762770889869,0.4905,3612.0,3611.9,7.00432993]
[1762770890194,0.9671,3612.0,3611.9,7.00432993]
[1762770892577,0.4905,3612.0,3611.9,7.00432993]
[1762770893189,0.0002,3612.0,3611.9,7.40992993]
[1762770893407,0.0002,3612.0,3611.9,8.75387814]
[1762770897774,0.0002,3612.0,3611.9,9.15947814]
[1762770899817,0.0002,3612.0,3611.9,8.75387814]
[1762770902687,0.0002,3612.0,3611.9,10.01359014]
[1762770903835,0.9489,3612.0,3611.9,6.43386021]
[1762770904036,0.9489,3612.0,3611.9,5.089912]
[1762770904326,0.9489,3612.0,3611.9,7.85853793]
[1762770904327,0.0002,3612.0,3611.9,7.85853793]
[1762770904524,0.9489,3612.0,3611.9,3.8302]
[1762770904691,0.9489,3612.0,3611.9,4.235704]
[1762770905318,0.9489,3612.0,3611.9,7.00432993]
[1762770906327,0.9489,3612.0,3611.9,4.235704]
[1762770906542,0.9489,3612.0,3611.9,3.8302]
[1762770907086,0.9489,3612.0,3611.9,6.59882593]
[1762770908051,0.4548,3612.0,3611.9,6.59882593]
[1762770908525,0.4548,3612.0,3611.9,7.00432993]
[1762770908526,0.9489,3612.0,3611.9,7.00432993]
[1762770908692,0.4548,3612.0,3611.9,7.00432993]
[1762770908894,0.4548,3612.0,3611.9,8.30771766]
[1762770909429,0.0002,3612.0,3611.9,8.71331766]
[1762770911218,0.0002,3612.0,3611.9,9.11891766]
[1762770911632,0.0002,3612.0,3611.9,8.71331766]
[1762770912367,0.4945,3612.4,3612.3,3.17382335]
[1762770912569,0.4945,3612.4,3612.3,7.00202335]
[1762770912770,0.9491,3612.4,3612.3,7.00202335]
[1762770913581,0.0004,3612.4,3612.3,9.97045889]
[1762770913750,0.0004,3612.4,3612.3,11.37206001]
[1762770914268,0.0004,3612.4,3612.3,9.97045889]
[1762770917570,0.0004,3612.4,3612.3,13.23123433]
[1762770917884,0.0004,3612.4,3612.3,9.97045889]
[1762770918045,0.0004,3612.4,3612.3,13.23123433]
[1762770918842,0.0004,3612.4,3612.3,13.63683433]
[1762770919042,0.0004,3612.4,3612.3,14.63283545]
[1762770919263,0.0004,3612.4,3612.3,14.74361959]
[1762770922285,0.0004,3612.4,3612.3,13.74761847]
[1762770922986,0.001,3612.8,3612.7,3.17351684]
[1762770923147,0.001,3612.8,3612.7,9.20251718]
[1762770924379,0.001,3612.8,3612.7,9.31329027]
[1762770926969,0.001,3612.8,3612.7,9.20251718]
[1762770928788,0.01,3612.9,3612.8,7.00024022]
[1762770928980,0.01,3612.9,3612.8,7.40584022]
[1762770929309,0.001,3613.2,3612.8,7.40584022]
[1762770929310,0.001,3613.2,3613.1,2.7677064]
[1762770929475,0.001,3614.4,3613.1,2.7677064]
[1762770929476,0.001,3614.4,3613.8,7.69316173]
[1762770929674,0.001,3614.4,3613.8,8.09876173]
[1762770929878,0.4746,3614.3,3613.8,8.09876173]
[1762770930274,0.4746,3614.3,3613.8,8.28786173]
[1762770934576,0.011,3613.9,3613.8,8.28786173]
[1762770934776,0.011,3613.9,3613.8,9.39337414]
[1762770936204,0.0102,3613.9,3613.8,9.39337414]
[1762770937587,1.171,3613.9,3613.8,0.405504]
[1762770937793,1.171,3613.9,3613.8,2.76717029]
[1762770938312,1.171,3613.9,3613.8,0.405504]
[1762770938515,1.171,3613.9,3613.7,2.7672007]
[1762770938715,0.8975,3613.8,3613.1,3.26077544]
[1762770939022,0.4746,3613.8,3613.5,2.76739568]
[1762770939223,0.4746,3613.7,3613.5,0.405504]
[1762770939391,0.4971,3613.6,3613.5,0.405504]
[1762770939588,0.4971,3613.6,3613.4,2.76745917]
[1762770939896,0.4971,3613.5,3613.3,0.405504]
[1762770940098,0.1993,3613.9,3613.3,3.17305293]
[1762770940314,0.4971,3613.4,3613.3,3.17305293]
[1762770940827,0.9717,3613.4,3612.8,3.26077544]
[1762770941028,0.9717,3613.4,3613.2,3.25854917]
[1762770941029,0.4746,3613.4,3613.2,3.25854917]
[1762770941223,0.4746,3613.3,3613.2,3.25854917]
[1762770941425,0.9717,3613.3,3613.2,3.25854917]
[1762770941647,0.9717,3613.3,3612.9,1.259712]
[1762770941804,0.4191,3613.0,3612.9,1.259712]
[1762770942023,0.4191,3613.0,3612.8,3.25854917]
[1762770942221,1.16,3612.9,3612.8,7.28619739]
[1762770942651,1.16,3612.9,3612.8,7.69170139]
[1762770943617,1.16,3612.9,3612.8,6.43198939]
[1762770944715,0.6854,3612.9,3612.8,7.67784589]
[1762770945046,1.16,3612.9,3612.8,7.67784589]
[1762770945244,1.16,3612.9,3612.8,0.405504]
[1762770945419,1.16,3612.9,3612.8,3.8268]
[1762770946628,1.16,3612.9,3612.3,3.8288]
[1762770946853,0.4971,3612.4,3612.3,4.234304]
[1762770947351,0.9717,3612.4,3612.3,4.234304]
[1762770947552,0.9717,3612.4,3612.3,0.002]
[1762770951063,3.73994271,3612.4,3612.3,0.002]
[1762770951753,0.9717,3612.4,3612.3,0.002]
[1762770953184,3.73994271,3612.4,3612.3,0.002]
[1762770953324,4.99965471,3612.4,3612.3,0.002]
[1762770953519,2.76854928,3612.0,3611.9,0.002]
[1762770953858,3.18764928,3612.0,3611.9,0.002]
[1762770954025,3.64884928,3612.0,3611.9,0.002]
[1762770955525,6.90739845,3612.0,3611.9,0.002]
[1762770955725,2.7688559,3611.6,3611.5,0.002]
[1762770955965,3.2829559,3611.6,3611.5,0.002]
[1762770956252,3.7636559,3611.6,3611.5,0.002]
[1762770960387,4.01743219,3611.6,3611.5,0.002]
[1762770960768,1.24937629,3611.6,3611.5,0.002]
[1762770961074,4.01823219,3611.6,3611.5,0.002]
[1762770964658,1.24937629,3611.6,3611.5,0.002]
[1762770967504,4.01823219,3611.6,3611.5,0.002]
[1762770970403,5.27794419,3611.6,3611.5,0.002]
[1762770970712,2.7691626,3611.2,3611.1,0.012]
[1762770970912,6.73448806,3611.2,3611.1,0.012]
[1762770971114,7.28765384,3610.9,3610.8,0.002]
[1762770971318,8.11163013,3610.9,3610.8,0.002]
[1762770971487,8.59233013,3610.9,3610.8,0.002]
[1762770973133,11.8508793,3610.9,3610.8,0.002]
[1762770973495,8.59233013,3610.9,3610.8,0.002]
[1762770973702,7.28773053,3610.8,3610.7,0.002]
[1762770973935,5.21665765,3610.8,3610.7,0.002]
[1762770974438,8.47520682,3610.8,3610.7,0.002]
[1762770974594,5.72633706,3610.8,3610.7,0.002]
[1762770974944,5.32756835,3610.8,3610.7,0.002]
[1762770975637,8.58611752,3610.8,3610.7,0.002]
[1762770976133,4.02941148,3610.5,3610.4,0.002]
[1762770976334,8.64173694,3610.5,3610.4,0.002]
[1762770976539,9.12243694,3610.5,3610.4,0.002]
[1762770979843,2.76992964,3610.2,3609.1,0.01]
[1762770980051,9.1216671,3610.2,3609.1,0.01]
[1762770980540,12.38021627,3610.2,3609.1,0.01]
[1762770980780,9.1216671,3610.2,3609.1,0.01]
[1762770980906,2.7706971,3609.2,3609.1,0.01]
[1762770981107,4.91948539,3609.2,3609.1,0.01]
[1762770981423,12.32278773,3609.2,3609.1,0.01]
[1762770981623,12.43376397,3609.2,3609.1,0.01]
[1762770982145,2.77146499,3608.2,3608.1,0.01]
[1762770982307,4.92025328,3608.2,3608.1,0.01]
[1762770982646,5.40095328,3608.2,3608.1,0.01]
[1762770983242,1.36977629,3608.2,3608.1,0.01]
[1762770983608,0.88907629,3608.2,3608.1,0.01]
[1762770983904,0.25457629,3608.2,3608.1,0.01]
[1762770984242,0.25377629,3608.2,3608.1,0.01]
[1762770984841,0.25377629,3608.2,3608.1,0.4276]
[1762770985142,0.25377629,3608.2,3608.1,0.5165]
[1762770985344,0.25377629,3608.2,3608.1,3.7056418]
[1762770985559,0.25377629,3608.2,3608.1,0.9341]
[1762770985861,0.25377629,3608.2,3608.1,3.7056418]
[1762770986009,0.25377629,3608.2,3608.1,3.7076418]
[1762770987095,0.25377629,3608.2,3608.1,4.35557527]
[1762770987510,0.25377629,3608.2,3608.1,4.76107927]
[1762770987712,1.441512,3609.4,3608.7,2.77106189]
[1762770987922,0.4567,3609.5,3608.8,2.77098867]
[1762770988118,0.4567,3609.5,3608.8,2.7709966]
[1762770988449,2.77060002,3609.4,3608.6,0.4176]
[1762770988665,2.77062974,3609.3,3608.6,0.4176]
[1762770988871,1.259712,3609.3,3608.6,0.4176]
[1762770989012,2.7706401,3609.3,3608.4,2.77126909]
[1762770989351,1.259712,3609.3,3608.6,2.77115386]
[1762770989658,0.4567,3609.4,3608.7,2.77107835]
[1762770990013,0.4567,3609.4,3608.8,2.77098851]
[1762770990349,0.4567,3609.4,3608.7,2.7710701]
[1762770990520,0.4567,3609.4,3608.5,0.4176]
[1762770990911,1.259712,3609.1,3608.4,2.77130613]
[1762770991147,1.259712,3609.1,3608.3,2.77137036]
[1762770991357,0.448,3609.7,3608.2,0.4176]
[1762770991524,2.77094447,3608.9,3608.1,2.87242117]
[1762770991737,0.4567,3609.0,3608.1,0.1009]
[1762770991929,0.1818,3608.8,3608.2,2.7714632]
[1762770992142,0.1818,3608.8,3608.1,0.012]
[1762770992342,0.1818,3608.8,3608.1,0.1009]
[1762770992539,0.1818,3608.8,3608.1,0.012]
[1762770992855,0.1818,3608.8,3608.1,2.87242629]
[1762770993148,0.1818,3609.2,3608.7,0.4176]
[1762770993458,2.95251644,3609.2,3608.4,3.18884704]
[1762770993642,3.40921644,3609.2,3608.4,2.77124704]
[1762770993953,3.40921644,3609.2,3608.1,1.12467312]
[1762770993954,0.4567,3609.1,3608.3,2.77136122]
[1762770994148,0.4567,3609.1,3608.4,2.77130551]
[1762770995453,0.1818,3609.2,3608.5,2.77123401]
[1762770995666,2.77054358,3609.4,3608.5,2.7711728]
[1762770995965,2.77062082,3609.3,3608.6,0.4176]
[1762770996166,0.25495933,3609.2,3608.6,0.4176]
[1762770996324,0.25495933,3609.1,3608.6,0.4176]
[1762770996525,0.25495933,3609.0,3608.4,3.8268]
[1762770996724,2.77072661,3609.2,3608.4,6.59806502]
[1762770996725,0.25495933,3608.9,3608.4,6.59806502]
[1762770996968,0.25495933,3608.8,3608.4,3.8268]
[1762770997133,0.25495933,3608.7,3608.4,3.8268]
[1762770997470,0.25495933,3608.6,3608.4,3.8268]
[1762770997750,0.25495933,3608.5,3608.4,6.59811138]
[1762770998265,0.25495933,3608.5,3608.4,7.01571138]
[1762770999628,0.25495933,3608.5,3608.4,7.43331138]
[1762770999937,0.25495933,3608.5,3608.4,4.2444]
[1762771000257,0.72955933,3608.5,3608.4,3.8268]
[1762771000465,3.95749391,3608.5,3608.1,0.012]
[1762771000634,0.4746,3608.2,3608.1,0.012]
[1762771000830,0.25495933,3608.2,3608.1,0.012]
[1762771002476,0.72955933,3608.2,3608.1,0.012]
[1762771002686,0.25495933,3608.2,3608.1,3.7076418]
[1762771002888,0.25495933,3608.2,3608.1,4.35556894]
[1762771004386,0.25495933,3608.2,3608.1,0.5185]
[1762771004552,0.25495933,3608.2,3608.1,0.4296]
[1762771004733,0.25495933,3608.2,3608.1,0.012]
[1762771005071,1.18625933,3608.2,3608.1,0.012]
[1762771005272,3.95772432,3608.2,3608.1,0.012]
[1762771005482,5.21743632,3608.2,3608.1,0.012]
[1762771005641,5.91743632,3608.2,3608.1,0.012]
[1762771007768,5.91831459,3608.2,3608.1,0.012]
[1762771008167,5.91751459,3608.2,3608.1,0.012]
[1762771009079,6.56751459,3608.2,3608.1,0.012]
[1762771011458,6.56751459,3608.2,3605.8,0.0943]
[1762771011459,2.77223331,3607.2,3605.8,0.0943]
[1762771011719,9.29409047,3607.2,3605.8,0.0943]
[1762771011874,9.75079047,3607.2,3605.8,0.0943]
[1762771012400,5.87008291,3607.2,3606.2,0.0951]
[1762771014094,3.0978496,3607.2,3606.2,0.0951]
[1762771014292,1.1871376,3607.2,3606.2,3.28650021]
[1762771014818,0.7304376,3607.2,3606.5,0.4184]
[1762771014986,0.7304376,3607.2,3606.5,3.19115195]
[1762771014987,0.7206376,3607.2,3606.5,3.19115195]
[1762771015184,0.7206376,3607.2,3606.7,2.77261279]
[1762771015497,0.2558376,3607.2,3606.8,2.77253723]
[1762771016084,0.2558376,3607.2,3606.9,2.77244441]
[1762771016283,0.2558376,3607.2,3606.8,2.77251512]
[1762771017426,0.2558376,3607.2,3606.9,2.77243972]
[1762771017584,0.2558376,3607.2,3606.8,2.77251393]
[1762771017784,0.2558376,3607.2,3606.7,2.77260571]
[1762771018183,0.2558376,3607.2,3606.8,2.77253381]
[1762771018412,0.2558376,3607.2,3607.1,0.4284]
[1762771018595,0.7206376,3607.2,3607.1,0.01]
[1762771020093,1.1758376,3607.2,3607.1,0.01]
[1762771020431,0.7206376,3607.2,3607.1,0.01]
[1762771021202,1.1758376,3607.2,3607.1,0.01]
[1762771021744,0.7206376,3607.2,3607.1,0.01]
[1762771022044,1.1758376,3607.2,3607.1,0.01]
[1762771022201,0.7206376,3607.2,3607.1,0.01]
[1762771022656,1.1758376,3607.2,3607.1,0.01]
[1762771022862,3.94807091,3607.2,3607.1,0.01]
[1762771023141,5.85878291,3607.2,3607.1,0.01]
[1762771023550,5.85878291,3607.2,3606.1,0.01]
[1762771023551,2.77286506,3606.4,3606.1,0.01]
[1762771023835,0.538,3606.2,3606.1,0.01]
[1762771024039,0.7938376,3606.2,3606.1,0.01]
[1762771024198,1.2490376,3606.2,3606.1,0.01]
[1762771024611,0.7938376,3606.2,3606.1,0.01]
[1762771025205,0.7938376,3606.2,3606.1,0.5435]
[1762771025206,0.2558376,3606.2,3606.1,0.5435]
[1762771025408,0.4552,3606.6,3606.1,0.01]
[1762771025603,0.2558376,3606.5,3606.1,2.78307522]
[1762771025837,0.2558376,3606.4,3606.1,0.01]
[1762771026027,2.77232457,3607.1,3606.1,0.01]
[1762771026028,0.2558376,3606.3,3606.2,2.77297987]
[1762771026218,1.259712,3607.4,3606.3,0.99451708]
[1762771026539,0.25488568,3607.3,3606.3,0.4304]
[1762771026837,0.25488568,3607.2,3606.8,2.77253611]
[1762771027039,0.25488568,3607.1,3606.4,0.4284]
[1762771027261,0.25488568,3607.0,3606.9,2.77245662]
[1762771027743,0.25488568,3607.0,3606.9,0.4284]
[1762771029277,0.25488568,3607.0,3606.9,3.20086388]
[1762771029945,0.4552,3607.6,3607.2,2.77221801]
[1762771030144,0.25515863,3607.5,3607.2,2.77221801]
[1762771030344,0.4552,3607.6,3607.2,2.77221801]
[1762771030345,0.25515863,3607.4,3607.2,2.77221801]
[1762771030572,0.25515863,3607.3,3607.1,2.77228824]
[1762771030770,0.25515863,3607.2,3607.1,2.77228824]
[1762771031282,0.25515863,3607.2,3607.1,0.5684]
[1762771031439,0.25515863,3607.2,3607.1,3.34071016]
[1762771032381,0.4552,3607.9,3607.1,0.9968]
[1762771032576,0.4552,3607.9,3607.1,3.34070026]
[1762771032877,0.4552,3607.9,3607.4,2.77201262]
[1762771033055,0.4552,3607.9,3607.2,2.77223331]
[1762771033245,0.4552,3607.9,3607.4,2.77202437]
[1762771033447,0.4552,3607.9,3607.2,2.77223331]
[1762771033644,0.4552,3607.9,3607.1,0.14]
[1762771033844,3.22690845,3607.9,3607.3,2.77213857]
[1762771034045,0.4552,3607.9,3607.3,2.77213857]
[1762771034358,0.4552,3607.9,3607.1,0.14]
[1762771034547,1.714912,3607.9,3607.3,2.77208855]
[1762771034980,0.4552,3607.9,3607.3,2.77209681]
[1762771035280,0.4552,3607.9,3607.4,2.77203122]
[1762771037348,2.95823423,3608.0,3607.4,2.77203122]
[1762771037551,2.77169758,3607.9,3607.3,2.77213767]
[1762771037781,3.41343382,3608.0,3607.3,2.77212585]
[1762771037978,0.6418,3608.0,3607.1,0.14]
[1762771038171,0.4552,3607.9,3607.2,2.77223331]
[1762771038360,0.4552,3607.9,3607.4,2.77200932]
[1762771038555,0.701,3608.2,3607.1,0.14]
[1762771038556,0.701,3608.2,3607.8,0.4284]
[1762771038782,1.259712,3608.1,3607.8,0.4284]
[1762771038981,0.701,3608.2,3607.9,2.7716313]
[1762771039183,0.701,3608.2,3608.1,0.4284]
[1762771039682,0.701,3608.2,3607.9,2.77166773]
[1762771039892,0.701,3608.2,3607.0,3.8268]
[1762771039893,1.1658,3608.2,3607.0,4.2552]
[1762771040053,1.1658,3608.2,3606.7,2.77261762]
[1762771040054,2.77193176,3607.6,3606.7,2.77261762]
[1762771040252,2.77193176,3607.6,3606.9,2.77241887]
[1762771040452,3.22713176,3607.6,3606.9,2.77241887]
[1762771040754,0.4552,3607.6,3607.0,2.77238021]
[1762771041381,0.4552,3607.6,3606.9,2.7724383]
[1762771041563,3.22713649,3607.6,3606.7,2.77261379]
[1762771041768,3.22713649,3607.6,3607.0,2.77238412]
[1762771042168,0.4552,3607.6,3607.0,2.77238412]
[1762771042369,3.22713861,3607.6,3607.0,2.77238412]
[1762771042586,3.22713861,3607.6,3606.9,2.77244849]
[1762771042778,3.22713861,3607.6,3607.0,2.77237911]
[1762771042986,0.4552,3607.6,3607.1,2.77230989]
[1762771043187,3.22726664,3607.5,3606.3,0.002]
[1762771043494,3.22726664,3607.5,3606.7,2.77256768]
[1762771043729,3.22728504,3607.4,3606.7,2.77256768]
[1762771043932,2.77215646,3607.3,3606.6,2.77268969]
[1762771044135,3.22735646,3607.3,3606.6,2.77268969]
[1762771044289,0.25621476,3607.2,3606.6,2.77268969]
[1762771044634,0.25621476,3607.1,3606.6,2.77268969]
[1762771044790,0.25621476,3607.0,3606.6,2.77268969]
[1762771044985,0.25621476,3606.9,3606.5,2.77276624]
[1762771045237,0.4552,3607.3,3606.8,2.77254075]
[1762771045455,0.25615837,3607.2,3606.8,2.77254075]
[1762771045740,0.25615837,3607.1,3606.8,2.77254075]
[1762771045940,0.25615837,3607.0,3606.9,2.77239352]
[1762771046523,0.25615837,3607.0,3606.9,0.4284]
[1762771046723,0.25615837,3607.0,3606.9,3.20086388]
[1762771047724,0.25615837,3607.0,3606.8,2.77250936]
[1762771048025,0.25615837,3606.9,3606.8,2.77250936]
[1762771048415,0.25615837,3606.9,3606.8,3.20090936]
[1762771048614,0.25615837,3606.9,3606.8,3.62930936]
[1762771049421,0.25615837,3606.9,3606.8,3.20090936]
[1762771049860,0.25615837,3606.9,3606.8,3.62930936]
[1762771052931,0.25615837,3606.9,3606.8,4.65218801]
[1762771054270,0.25615837,3606.9,3606.8,3.62930936]
[1762771054448,0.73475837,3606.9,3606.3,0.002]
[1762771054649,0.1866,3607.8,3606.5,2.77270886]
[1762771054650,0.25615837,3606.8,3606.5,2.77270886]
[1762771054966,0.25615837,3606.7,3606.5,2.77274439]
[1762771055136,0.25615837,3606.6,3606.5,2.77274439]
[1762771055542,0.25615837,3606.6,3606.5,3.20114439]
[1762771055835,0.25615837,3606.6,3606.3,0.002]
[1762771055836,0.73475837,3606.6,3606.3,0.002]
[1762771056023,0.4786,3606.4,3606.3,0.002]
[1762771056226,3.50680663,3606.4,3606.3,0.002]
[1762771056559,3.96580663,3606.4,3606.3,0.002]
[1762771057964,5.22551863,3606.4,3606.3,0.002]
[1762771058258,5.92551863,3606.4,3606.3,0.002]
[1762771060728,1.43475837,3606.4,3606.3,0.002]
[1762771061152,4.66660663,3606.4,3606.3,0.002]
[1762771061357,5.92631863,3606.4,3606.3,0.002]
[1762771064173,2.69447037,3606.4,3606.3,0.002]
[1762771064375,2.21587037,3606.4,3606.3,0.002]
[1762771064757,5.46731863,3606.4,3606.3,0.002]
[1762771064957,2.69447037,3606.4,3606.3,0.002]
[1762771065817,5.46731863,3606.4,3606.3,0.002]
[1762771065963,2.21587037,3606.4,3606.3,0.002]
[1762771066157,2.21587037,3606.4,3606.3,0.4312]
[1762771067493,2.21587037,3606.4,3606.3,0.002]
[1762771068274,5.46731863,3606.4,3606.3,0.002]
[1762771068475,2.21587037,3606.4,3606.3,0.002]
[1762771068671,0.95615837,3606.4,3606.3,0.4312]
[1762771069287,1.43475837,3606.4,3606.3,0.002]
[1762771069803,0.95615837,3606.4,3606.3,0.4312]
[1762771070004,0.95615837,3606.4,3606.3,0.002]
[1762771070497,0.95615837,3606.4,3606.3,2.77492515]
[1762771070706,0.95615837,3606.4,3606.3,0.002]
[1762771072900,0.95615837,3606.4,3606.3,3.63332515]
[1762771073076,0.95615837,3606.4,3606.3,4.63990644]
[1762771073278,0.95615837,3606.4,3606.3,4.61217719]
[1762771074020,0.95615837,3606.4,3606.3,7.88426036]
[1762771074609,0.95615837,3606.4,3606.3,4.61217719]
[1762771074811,1.43555837,3606.4,3606.3,0.002]
[1762771075011,1.92735837,3606.4,3606.3,0.002]
[1762771077115,1.43555837,3606.4,3606.3,0.002]
[1762771077912,1.92735837,3606.4,3606.3,0.002]
[1762771078313,1.43555837,3606.4,3606.3,0.002]
[1762771078518,0.95615837,3606.4,3606.3,0.002]
[1762771079796,1.43555837,3606.4,3606.3,0.002]
[1762771080198,1.43475837,3606.4,3606.3,0.002]
[1762771080638,1.43475837,3606.4,3606.3,2.77492515]
[1762771081096,1.43475837,3606.4,3606.3,0.002]
[1762771081926,0.95535837,3606.4,3606.3,4.28923924]
[1762771082125,0.95535837,3606.4,3606.3,3.86003924]
[1762771083212,0.95635837,3606.4,3606.3,3.86003924]
[1762771084411,0.95635837,3606.4,3606.3,3.75993924]
[1762771084623,0.95635837,3606.4,3606.3,3.20412515]
[1762771086840,0.95635837,3606.4,3606.3,2.77492515]
[1762771087236,0.95635837,3606.4,3606.3,3.63332515]
[1762771089819,0.95635837,3606.4,3606.3,3.20412515]
[1762771090318,0.95635837,3606.4,3606.3,3.63332515]
[1762771090546,0.95635837,3606.4,3606.3,4.61217725]
[1762771090854,0.95635837,3606.4,3606.3,3.75377725]
[1762771091656,0.95635837,3606.4,3606.3,4.18297725]
[1762771091819,0.95635837,3606.4,3606.3,3.75377725]
[1762771092227,0.95635837,3606.4,3606.3,4.18297725]
[1762771094753,0.95635837,3606.4,3606.3,4.61217725]
[1762771096079,0.95635837,3606.4,3606.3,5.01768125]
[1762771096489,0.95635837,3606.4,3606.3,4.58848125]
[1762771097480,0.95635837,3606.4,3606.3,3.75377725]
[1762771097779,0.95635837,3606.4,3606.3,3.20412515]
[1762771098949,0.95635837,3606.4,3606.3,4.03882915]
[1762771100743,0.25635837,3606.4,3606.3,4.03882915]
[1762771100948,0.001,3606.7,3606.6,3.1781985]
[1762771101246,0.1898,3608.0,3606.9,2.77246388]
[1762771101468,0.1898,3608.0,3607.8,2.77171819]
[1762771101672,0.4794,3607.9,3607.8,2.77171819]
[1762771102183,0.9712,3607.9,3607.8,2.77171819]
[1762771102783,0.4794,3607.9,3607.8,2.77171819]
[1762771103116,0.001,3608.2,3608.1,2.7715418]
[1762771103248,0.001,3608.2,3607.5,2.77196352]
[1762771103249,0.6699,3607.9,3607.4,0.405504]
[1762771103445,0.3922,3607.8,3607.7,2.7718491]
[1762771103864,0.4928,3608.2,3608.0,2.77157196]
[1762771104064,0.4928,3608.2,3607.4,0.405504]
[1762771104395,0.4928,3608.2,3607.8,2.77171759]
[1762771104396,0.492,3608.2,3607.8,2.77171759]
[1762771104556,0.492,3608.2,3607.9,2.77164469]
[1762771104892,0.492,3608.2,3607.5,2.77200277]
[1762771105266,0.492,3608.2,3608.0,2.77155051]
[1762771105657,0.4916,3608.1,3607.9,2.77167339]
[1762771105883,0.492,3608.2,3607.9,2.77167339]
[1762771106083,0.492,3608.2,3608.0,2.77161593]
[1762771106588,0.4916,3608.1,3608.0,2.77161593]
[1762771107288,0.0002,3608.2,3608.1,2.7715418]
[1762771107708,0.4918,3608.2,3608.1,2.7715418]
[1762771108510,0.0002,3608.2,3608.1,2.7715418]
[1762771108917,0.0002,3608.2,3608.1,3.2007418]
[1762771109504,0.0002,3608.2,3608.1,4.05249309]
[1762771111183,0.0002,3608.2,3608.1,3.2896418]
[1762771111569,0.0002,3608.2,3608.1,3.2007418]
[1762771112405,0.0002,3608.2,3608.1,3.2896418]
[1762771113012,0.0002,3608.2,3608.1,6.56172497]
[1762771113312,0.25635515,3608.2,3608.1,6.56172497]
[1762771113519,0.25635515,3608.2,3608.1,7.0275418]
[1762771114209,0.25635515,3608.2,3608.1,8.37758589]
[1762771114609,0.25635515,3608.2,3608.1,8.78308989]
[1762771114804,0.25635515,3608.2,3608.1,12.14407306]
[1762771115312,0.25635515,3608.2,3608.1,12.57327306]
[1762771116369,0.0002,3608.2,3608.1,15.84535623]
[1762771117175,0.0002,3608.2,3608.1,17.10506823]
[1762771117377,0.0002,3608.2,3608.1,10.56090189]
[1762771117587,0.0002,3608.2,3608.1,17.10506823]
[1762771117891,0.0002,3608.2,3608.1,13.40378506]
[1762771118497,0.0002,3608.2,3608.1,7.82143697]
[1762771118935,0.0002,3608.2,3608.1,8.65614097]
[1762771119109,0.0002,3608.2,3608.1,11.92822414]
[1762771119522,0.0002,3608.2,3608.1,11.93022414]
[1762771121318,0.0002,3608.2,3608.1,8.65814097]
[1762771121515,0.0002,3608.2,3608.1,10.18379666]
[1762771122015,0.0002,3608.2,3608.1,13.45587983]
[1762771124960,0.0002,3608.2,3608.1,10.17851069]
[1762771125260,0.0002,3608.2,3608.1,14.00531069]
[1762771128279,0.001,3608.6,3608.5,0.405504]
[1762771128436,0.001,3608.6,3608.5,0.834704]
[1762771128636,0.001,3608.6,3608.5,1.51536535]
[1762771129087,0.001,3608.6,3608.5,4.28659993]
[1762771129767,0.4926,3608.6,3608.5,3.85739993]
[1762771129979,0.001,3608.6,3608.5,3.17673858]
[1762771131090,0.001,3608.6,3608.5,7.43273858]
[1762771132672,0.001,3608.6,3608.5,10.69953578]
[1762771133490,0.001,3608.6,3608.5,11.12873578]
[1762771134759,0.001,3608.6,3608.5,10.69953578]
[1762771134991,0.001,3608.6,3608.5,12.3666803]
[1762771135199,1e-08,3608.9,3608.8,3.60570821]
[1762771135351,1e-08,3608.9,3608.8,10.69930541]
[1762771135692,1e-08,3608.9,3608.8,11.12850541]
[1762771135893,1e-08,3608.9,3608.8,13.51424367]
[1762771136760,1e-08,3608.9,3608.8,14.77395567]
[1762771138871,0.00100001,3608.9,3608.8,14.77395567]
[1762771140153,0.00100001,3608.9,3608.8,13.91555567]
[1762771140495,0.00100001,3608.9,3608.8,14.77395567]
[1762771141192,0.00100001,3608.9,3608.8,10.64875847]
[1762771141413,0.00100001,3608.9,3608.8,14.34475567]
[1762771141906,0.00100001,3608.9,3608.8,14.77395567]
[1762771142416,0.00100001,3608.9,3608.8,14.34475567]
[1762771142631,0.00100001,3608.9,3608.8,7.85751621]
[1762771142632,1.34523434,3608.9,3608.8,7.85751621]
[1762771142912,1.34523434,3608.9,3608.8,6.59780421]
[1762771143672,1.34523434,3608.9,3608.8,7.00330821]